fUST/lending_fUST_20241110
["ID","MTS","AMOUNT","RATE_DAILY","PERIOD"]
[341764643,1731217844626,-331.86982735,0.0003087,2]
[341764645,1731217844635,-212.0390805,0.00030877,30]
[341764647,1731217844646,-153.0,0.00030877,30]
[341764650,1731217844656,-212.0390805,0.00030877,30]
[341764651,1731217844666,-212.0390805,0.00030877,30]
[341764653,1731217844676,-153.0,0.00030877,30]
[341764655,1731217844686,-212.0390805,0.00030877,30]
[341764657,1731217844696,-153.0,0.00030877,30]
[341764660,1731217844706,-212.0390805,0.00030877,30]
[341764661,1731217844716,-212.0390805,0.00030877,30]
[341764663,1731217844725,-212.0390805,0.00030877,30]
[341764665,1731217844735,-153.0,0.00030877,30]
[341764666,1731217844744,-212.0390805,0.00030877,30]
[341764667,1731217844754,-212.0390805,0.00030877,30]
[341764668,1731217844764,-153.0,0.00030877,30]
[341764669,1731217844775,-212.0390805,0.00030877,30]
[341764670,1731217844786,-212.0390805,0.00030877,30]
[341764671,1731217844796,-153.0,0.00030877,30]
[341764672,1731217844806,-212.0390805,0.00030877,30]
[341764673,1731217844817,-212.0390805,0.00030877,30]
[341764674,1731217844827,-153.0,0.00030877,30]
[341764675,1731217844837,-212.0390805,0.00030877,30]
[341764676,1731217844846,-153.0,0.00030877,30]
[341764677,1731217844857,-212.0390805,0.00030877,30]
[341764678,1731217844866,-212.0390805,0.00030877,30]
[341764679,1731217844875,-153.0,0.00030877,30]
[341764680,1731217844884,-212.0390805,0.00030877,30]
[341764681,1731217844893,-212.0390805,0.00030877,30]
[341764682,1731217844903,-153.0,0.00030877,30]
[341764683,1731217844913,-212.0390805,0.00030877,30]
[341764684,1731217844922,-212.0390805,0.00030877,30]
[341764685,1731217844931,-153.0,0.00030877,30]
[341764686,1731217844941,-212.0390805,0.00030877,30]
[341764687,1731217844950,-212.0390805,0.00030877,30]
[341764688,1731217844960,-212.0390805,0.00030877,30]
[341764689,1731217844969,-153.0,0.00030877,30]
[341764690,1731217844978,-212.0390805,0.00030877,30]
[341764691,1731217844987,-153.0,0.00030877,30]
[341764692,1731217844998,-212.0390805,0.00030877,30]
[341764693,1731217845008,-212.0390805,0.00030877,30]
[341764694,1731217845017,-153.0,0.00030877,30]
[341764695,1731217845027,-212.0390805,0.00030877,30]
[341764696,1731217845038,-7240.80589961,0.0003089,2]
[341764697,1731217845048,-1845.0,0.000309,7]
[341764698,1731217845058,-70614.1911964,0.000309,2]
[341764699,1731217845326,-607.63888889,0.00025879,2]
[341764700,1731217845337,-313.72340794,0.00030136,2]
[341764701,1731217845346,-212.0390805,0.00030877,30]
[341764702,1731217845362,-10246.774764,0.000309,2]
[341764704,1731217845372,-308.8627427,0.00030904,30]
[341764706,1731217845382,-319.0950803,0.00030904,30]
[341764708,1731217845392,-405.8977558,0.00030904,30]
[341764710,1731217845402,-303.7049688,0.00030904,30]
[341764711,1731217845412,-303.7049688,0.00030904,30]
[341764713,1731217845421,-303.7049688,0.00030904,30]
[341764715,1731217845431,-2627.12143346,0.0003095,10]
[341764717,1731217845440,-155.976661,0.00030958,7]
[341764718,1731217845449,-500.0,0.00030958,15]
[341764719,1731217845459,-432.52469303,0.00030958,2]
[341764720,1731217845468,-500.0,0.00030958,2]
[341764721,1731217845476,-500.0,0.00030958,2]
[341764722,1731217845485,-500.0,0.00030958,2]
[341764723,1731217845494,-473.72023036,0.00030958,2]
[341764724,1731217845506,-26.27976964,0.00030958,2]
[341764725,1731217845515,-500.0,0.00030958,2]
[341764726,1731217845525,-500.0,0.00030958,2]
[341764727,1731217845536,-500.0,0.00030958,2]
[341764728,1731217845546,-500.0,0.00030958,2]
[341764729,1731217845555,-500.0,0.00030958,2]
[341764730,1731217845565,-602.90038783,0.00030958,2]
[341764731,1731217845576,-500.0,0.00030958,2]
[341764732,1731217845586,-500.0,0.00030958,2]
[341764733,1731217845596,-500.0,0.00030958,2]
[341764734,1731217845607,-500.0,0.00030958,2]
[341764735,1731217845617,-3257.78,0.00030958,2]
[341764736,1731217845627,-1755.26,0.00030958,2]
[341764737,1731217845637,-1032.04,0.00030958,2]
[341764738,1731217845646,-174.37570847,0.00030958,2]
[341764739,1731217845656,-642.83152483,0.00030958,2]
[341764740,1731217845667,-500.0,0.00030958,2]
[341764741,1731217845677,-241.82105241,0.00030958,2]
[341764742,1731217845687,-500.0,0.00030958,2]
[341764743,1731217845697,-500.0,0.00030958,2]
[341764744,1731217845707,-500.0,0.00030958,2]
[341764745,1731217845716,-500.0,0.00030958,2]
[341764746,1731217845727,-503.60762378,0.00030958,2]
[341764747,1731217845737,-212.68181314,0.00030958,2]
[341764748,1731217845746,-502.77240549,0.00030958,2]
[341764749,1731217845756,-500.0,0.00030958,2]
[341764750,1731217845766,-500.0,0.00030958,2]
[341764751,1731217845776,-500.0,0.00030958,2]
[341764752,1731217845786,-523.84825201,0.00030958,2]
[341764753,1731217845796,-500.0,0.00030958,2]
[341764754,1731217845805,-507.45959272,0.00030958,2]
[341764755,1731217845814,-1775.0,0.00030958,2]
[341764758,1731217845824,-652.37,0.00030958,2]
[341764759,1731217845834,-500.0,0.00030958,2]
[341764761,1731217845844,-500.0,0.00030958,2]
[341764763,1731217845855,-4438.43,0.00030958,2]
[341764764,1731217845864,-500.0,0.00030958,2]
[341764766,1731217845874,-500.0,0.00030958,2]
[341764767,1731217845884,-500.0,0.00030958,2]
[341764768,1731217845894,-500.0,0.00030958,2]
[341764769,1731217845904,-1369.57,0.00030958,2]
[341764770,1731217845914,-500.0,0.00030958,2]
[341764771,1731217845923,-500.0,0.00030958,2]
[341764773,1731217845932,-664.95,0.00030958,2]
[341764775,1731217845943,-513.61039883,0.00030958,2]
[341764776,1731217845953,-500.0,0.00030958,2]
[341764778,1731217845963,-500.0,0.00030958,2]
[341764780,1731217845973,-500.0,0.00030958,2]
[341764782,1731217845982,-500.0,0.00030958,2]
[341764785,1731217845993,-108.31654341,0.00030958,2]
[341764789,1731217846090,-424.78345659,0.00030958,2]
[341764790,1731217846101,-1028.13,0.00030958,2]
[341764791,1731217846111,-500.0,0.00030958,120]
[341764792,1731217846122,-156.28423869,0.00030958,2]
[341764793,1731217846131,-500.0,0.00030958,2]
[341764794,1731217846144,-500.0,0.00030958,2]
[341764795,1731217846153,-500.0,0.00030958,2]
[341764796,1731217846163,-500.0,0.00030958,2]
[341764797,1731217846172,-500.0,0.00030958,2]
[341764798,1731217846183,-508.05241376,0.00030958,2]
[341764799,1731217846192,-500.0,0.00030958,2]
[341764800,1731217846202,-500.0,0.00030958,2]
[341764801,1731217846212,-500.0,0.00030958,2]
[341764802,1731217846223,-508.64373175,0.00030958,2]
[341764803,1731217846233,-500.0,0.00030958,2]
[341764804,1731217846242,-331.86982735,0.00030962,2]
[341764805,1731217846251,-151.0,0.00031,7]
[341764806,1731217846262,-151.0,0.00031,7]
[341764807,1731217846273,-153.601071,0.00031,7]
[341764808,1731217846282,-1000.0,0.00031,2]
[341764809,1731217846292,-5000.0,0.00031,2]
[341764810,1731217846301,-5000.0,0.00031,2]
[341764811,1731217846310,-5000.0,0.00031,2]
[341764812,1731217846320,-5000.0,0.00031,2]
[341764813,1731217846329,-339.63179447,0.00031,2]
[341764833,1731217846691,-301.88811947,0.00030136,2]
[341764835,1731217846702,-504.95982116,0.00030136,2]
[341764837,1731217846712,-241.8950164,0.00030957,2]
[341764839,1731217846722,-500.0,0.00030957,2]
[341764841,1731217846732,-516.41771941,0.00030957,2]
[341764843,1731217846741,-312.24050999,0.00030957,2]
[341764845,1731217846751,-500.0,0.00030957,2]
[341764847,1731217846761,-608.17973795,0.00030957,2]
[341764848,1731217846770,-486.66907562,0.00030957,2]
[341765009,1731218044795,163.765775,0.00013973,2]
[341765024,1731218235877,342.0,0.00031724,30]
[341765049,1731218740342,731.6,0.00027,60]
[341765103,1731218925121,163.86383,0.00013973,2]
[341765125,1731219026030,607.63888889,0.00020844,2]
[341765197,1731219036029,-163.86383,0.00022759,2]
[341765198,1731219036039,-488.94736771,0.00024607,2]
[341765199,1731219036051,-982.05263229,0.00024607,2]
[341765200,1731219036060,-607.63888889,0.00024607,2]
[341765201,1731219036069,-300.0,0.00024999,2]
[341765202,1731219036078,-1785.05576097,0.00025,30]
[341765240,1731219038847,-6558.65450164,0.00025,30]
[341765258,1731219039006,-792.62,0.00025,30]
[341765722,1731219043779,-863.66973739,0.00025,30]
[341765725,1731219043789,-8000.0,0.00025,7]
[341765727,1731219043798,-372.9656971,0.00026464,2]
[341765729,1731219043807,-1471.0,0.00027068,4]
[341765731,1731219043817,-420.0,0.00027082,2]
[341765732,1731219043826,-224.0,0.00029339,2]
[341765734,1731219043836,-1471.0,0.00029774,7]
[341765737,1731219043845,-3493.25,0.0003,5]
[341765738,1731219043854,-153.0,0.00030055,30]
[341765741,1731219043864,-210.3887457,0.00030055,30]
[341765743,1731219043873,-153.0,0.00030055,30]
[341765744,1731219043884,-153.0,0.00030055,30]
[341765746,1731219043894,-153.0,0.00030055,30]
[341765748,1731219043903,-153.0,0.00030055,30]
[341765751,1731219043912,-153.0,0.00030055,30]
[341765753,1731219043921,-455.5574532,0.00030082,30]
[341765755,1731219043930,-266.4368133,0.00030082,30]
[341765757,1731219043939,-212.0390805,0.00030082,30]
[341765759,1731219043948,-212.0390805,0.00030082,30]
[341765760,1731219043957,-294.69,0.00030126,3]
[341765762,1731219043966,-884.07,0.00030126,3]
[341765764,1731219043975,-1516.51,0.00030126,10]
[341765766,1731219043984,-500.0,0.00030135,2]
[341765768,1731219043994,-11371.93393836,0.00030135,4]
[341765770,1731219044003,-362.73170302,0.00030135,7]
[341765772,1731219044013,-506.37202523,0.00030136,2]
[341765774,1731219044022,-500.0,0.00030136,2]
[341765776,1731219044031,-281.50027698,0.00030136,2]
[341765778,1731219044040,-605.10931687,0.00030136,2]
[341765781,1731219044049,-500.0,0.00030136,2]
[341765783,1731219044058,-500.0,0.00030136,2]
[341765785,1731219044067,-500.0,0.00030136,2]
[341765787,1731219044076,-511.99899283,0.00030136,2]
[341765789,1731219044085,-250.35,0.00030136,2]
[341765791,1731219044096,-499.73205891,0.00030136,2]
[341765793,1731219044105,-525.10217078,0.00030136,2]
[341765795,1731219044114,-500.0,0.00030136,120]
[341765797,1731219044123,-500.0,0.00030136,2]
[341765799,1731219044135,-247.61537092,0.00030136,2]
[341765801,1731219044144,-408.14,0.00030136,2]
[341765803,1731219044153,-500.0,0.00030136,2]
[341765805,1731219044163,-500.0,0.00030136,2]
[341765807,1731219044172,-500.0,0.00030136,2]
[341765809,1731219044181,-2714.82,0.00030136,2]
[341765811,1731219044190,-500.0,0.00030136,2]
[341765813,1731219044199,-500.0,0.00030136,2]
[341765815,1731219044208,-500.0,0.00030136,2]
[341765817,1731219044217,-508.86533384,0.00030136,2]
[341765819,1731219044226,-201.12263081,0.00030136,2]
[341765821,1731219044235,-500.0,0.00030136,2]
[341765823,1731219044244,-500.0,0.00030136,2]
[341765825,1731219044253,-271.39647256,0.00030136,2]
[341765827,1731219044263,-500.0,0.00030136,2]
[341765829,1731219044272,-500.0,0.00030136,2]
[341765831,1731219044281,-500.0,0.00030136,2]
[341765833,1731219044290,-404.4367177,0.00030136,2]
[341765835,1731219044298,-500.0,0.00030136,2]
[341765837,1731219044308,-500.0,0.00030136,2]
[341765839,1731219044317,-505.79039904,0.00030136,2]
[341765841,1731219044326,-526.57292408,0.00030136,2]
[341765843,1731219044336,-500.0,0.00030136,2]
[341765845,1731219044345,-500.0,0.00030136,2]
[341765847,1731219044354,-500.0,0.00030136,2]
[341765849,1731219044363,-500.0,0.00030136,2]
[341765851,1731219044373,-503.65622894,0.00030136,2]
[341765854,1731219044385,-500.0,0.00030136,2]
[341765856,1731219044394,-1462.72,0.00030136,2]
[341765858,1731219044404,-500.0,0.00030136,2]
[341765860,1731219044413,-860.03,0.00030136,2]
[341765861,1731219044422,-512.74328888,0.00030136,2]
[341765863,1731219044431,-500.0,0.00030136,2]
[341765866,1731219044441,-500.0,0.00030136,2]
[341765868,1731219044450,-500.0,0.00030136,2]
[341765869,1731219044459,-500.0,0.00030136,2]
[341765872,1731219044468,-500.0,0.00030136,2]
[341765874,1731219044478,-500.0,0.00030136,2]
[341765875,1731219044487,-500.0,0.00030136,2]
[341765877,1731219044497,-575.74451553,0.00030136,2]
[341765879,1731219044506,-502.72105777,0.00030136,2]
[341765881,1731219044515,-526.86384139,0.00030136,2]
[341765883,1731219044524,-506.40463092,0.00030136,2]
[341765885,1731219044533,-503.5353093,0.00030136,2]
[341765887,1731219044543,-500.0,0.00030136,7]
[341765889,1731219044552,-500.0,0.00030136,2]
[341765891,1731219044562,-500.0,0.00030136,2]
[341765894,1731219044572,-500.0,0.00030136,2]
[341765896,1731219044582,-500.0,0.00030136,2]
[341765897,1731219044591,-500.0,0.00030136,2]
[341765900,1731219044600,-500.0,0.00030136,2]
[341765902,1731219044609,-500.0,0.00030136,2]
[341765903,1731219044619,-500.0,0.00030136,2]
[341765906,1731219044629,-500.0,0.00030136,2]
[341765908,1731219044639,-1771.47,0.00030136,2]
[341765909,1731219044649,-200.0,0.00030136,2]
[341765911,1731219044659,-500.0,0.00030136,2]
[341765913,1731219044669,-516.65795759,0.00030136,2]
[341765916,1731219044679,-500.0,0.00030136,2]
[341765917,1731219044689,-500.0,0.00030136,2]
[341765920,1731219044700,-500.0,0.00030136,2]
[341765922,1731219044711,-500.0,0.00030136,2]
[341765924,1731219044720,-3883.62,0.00030136,2]
[341765925,1731219044730,-500.0,0.00030136,2]
[341765927,1731219044739,-500.0,0.00030136,2]
[341765928,1731219044749,-500.0,0.00030136,2]
[341765930,1731219044759,-500.0,0.00030136,2]
[341765932,1731219044768,-506.13107154,0.00030136,2]
[341765933,1731219044778,-1198.38,0.00030136,2]
[341765934,1731219044788,-393.98442997,0.00030136,2]
[341765936,1731219044798,-500.0,0.00030136,2]
[341765937,1731219044808,-1553.13,0.00030136,2]
[341765939,1731219044818,-425.14644357,0.00030136,2]
[341765941,1731219044828,-500.0,0.00030136,2]
[341765942,1731219044837,-503.57937093,0.00030136,2]
[341765944,1731219044846,-500.0,0.00030136,2]
[341765945,1731219044855,-500.0,0.00030136,2]
[341765947,1731219044865,-500.0,0.00030136,2]
[341765948,1731219044874,-500.0,0.00030136,2]
[341765950,1731219044885,-500.0,0.00030136,2]
[341765951,1731219044895,-500.0,0.00030136,2]
[341765953,1731219044904,-331.57,0.00030136,2]
[341765954,1731219044913,-500.0,0.00030136,2]
[341765956,1731219044922,-500.0,0.00030136,2]
[341765957,1731219044931,-899.61,0.00030136,2]
[341765959,1731219044940,-157.00997824,0.00030136,2]
[341765961,1731219044949,-341.47029395,0.00030136,2]
[341765962,1731219044957,-500.0,0.00030136,2]
[341765964,1731219044967,-500.0,0.00030136,2]
[341765965,1731219044976,-500.0,0.00030136,2]
[341765967,1731219044985,-500.0,0.00030136,2]
[341765969,1731219044995,-500.0,0.00030136,2]
[341765970,1731219045004,-570.83,0.00030136,2]
[341765978,1731219045110,-478.63662479,0.00030136,2]
[341765980,1731219045120,-500.0,0.00030136,2]
[341765981,1731219045131,-500.0,0.00030136,2]
[341765983,1731219045141,-506.7183527,0.00030136,2]
[341765984,1731219045150,-368.16,0.00030136,2]
[341765986,1731219045162,-535.99872703,0.00030136,2]
[341765988,1731219045171,-581.83,0.00030136,2]
[341765990,1731219045181,-500.0,0.00030136,2]
[341765991,1731219045191,-500.0,0.00030136,2]
[341765993,1731219045200,-574.7772369,0.00030136,2]
[341765994,1731219045209,-500.0,0.00030136,2]
[341765996,1731219045233,-500.0,0.00030136,2]
[341765998,1731219045242,-500.0,0.00030136,2]
[341765999,1731219045252,-500.0,0.00030136,2]
[341766001,1731219045261,-500.0,0.00030136,2]
[341766002,1731219045270,-500.0,0.00030136,2]
[341766004,1731219045279,-500.0,0.00030136,2]
[341766006,1731219045288,-500.0,0.00030136,2]
[341766007,1731219045298,-300.32657972,0.00030136,2]
[341766009,1731219045307,-500.0,0.00030136,2]
[341766010,1731219045316,-504.33291758,0.00030136,2]
[341766012,1731219045326,-500.0,0.00030136,2]
[341766014,1731219045336,-500.0,0.00030136,2]
[341766015,1731219045346,-500.0,0.00030136,2]
[341766017,1731219045356,-160.49775391,0.00030357,5]
[341766019,1731219045366,-501.95037295,0.00030357,5]
[341766020,1731219045376,-505.79183929,0.00030373,5]
[341766022,1731219045390,-500.21512103,0.00030373,5]
[341766024,1731219045399,-502.5963108,0.00030388,5]
[341766025,1731219045409,-3412.91,0.00030409,120]
[341766027,1731219045419,-503.78115908,0.0003041,2]
[341766028,1731219045429,-500.0,0.0003041,2]
[341766030,1731219045438,-500.0,0.0003041,120]
[341766031,1731219045448,-500.0,0.0003041,2]
[341766033,1731219045457,-507.2628166,0.0003041,2]
[341766035,1731219045466,-500.0,0.0003041,2]
[341766036,1731219045475,-2714.82,0.0003041,2]
[341766038,1731219045485,-524.12133135,0.0003041,2]
[341766039,1731219045494,-357.26397801,0.0003041,2]
[341766041,1731219045504,-500.0,0.0003041,2]
[341766043,1731219045513,-508.93250772,0.0003041,2]
[341766044,1731219045523,-500.0,0.0003041,2]
[341766046,1731219045531,-500.0,0.0003041,2]
[341766047,1731219045540,-500.0,0.0003041,2]
[341766049,1731219045550,-500.0,0.0003041,2]
[341766050,1731219045560,-1462.72,0.0003041,2]
[341766052,1731219045569,-860.03,0.0003041,2]
[341766054,1731219045578,-509.58496845,0.0003041,2]
[341766055,1731219045588,-501.76359113,0.0003041,2]
[341766057,1731219045598,-579.00687493,0.0003041,2]
[341766058,1731219045607,-500.0,0.0003041,2]
[341766060,1731219045616,-500.0,0.0003041,2]
[341766061,1731219045625,-500.0,0.0003041,2]
[341766063,1731219045637,-500.0,0.0003041,2]
[341766065,1731219045646,-500.0,0.0003041,2]
[341766066,1731219045656,-532.66076172,0.0003041,2]
[341766068,1731219045665,-521.76336307,0.0003041,2]
[341766069,1731219045674,-1771.47,0.0003041,2]
[341766071,1731219045684,-506.53892453,0.0003041,2]
[341766072,1731219045694,-517.0132446,0.0003041,2]
[341766074,1731219045708,-500.0,0.0003041,2]
[341766076,1731219045717,-3883.62,0.0003041,2]
[341766077,1731219045726,-514.6765341,0.0003041,2]
[341766079,1731219045735,-1198.38,0.0003041,2]
[341766080,1731219045743,-590.99497339,0.0003041,2]
[341766082,1731219045752,-1553.13,0.0003041,2]
[341766084,1731219045763,-500.0,0.0003041,2]
[341766085,1731219045771,-458.87182357,0.0003041,2]
[341766087,1731219045781,-500.0,0.0003041,2]
[341766089,1731219045789,-899.61,0.0003041,2]
[341766090,1731219045798,-500.0,0.0003041,2]
[341766092,1731219045808,-500.0,0.0003041,2]
[341766093,1731219045817,-544.40407117,0.0003041,2]
[341766095,1731219045826,-500.0,0.0003041,2]
[341766096,1731219045835,-641.6,0.0003041,2]
[341766098,1731219045844,-570.83,0.0003041,2]
[341766100,1731219045853,-500.0,0.0003041,2]
[341766101,1731219045861,-579.74242288,0.0003041,2]
[341766103,1731219045871,-581.83,0.0003041,2]
[341766104,1731219045880,-500.0,0.0003041,2]
[341766106,1731219045890,-500.0,0.0003041,2]
[341766108,1731219045900,-548.57037628,0.0003041,2]
[341766109,1731219045909,-512.93314489,0.0003041,2]
[341766111,1731219045918,-500.0,0.0003041,2]
[341766112,1731219045926,-500.0,0.0003041,2]
[341766114,1731219045937,-299.94704443,0.0003041,2]
[341766116,1731219045946,-500.0,0.0003041,2]
[341766117,1731219045956,-500.0,0.0003041,2]
[341766119,1731219045966,-280.47942107,0.0003041,2]
[341766120,1731219045975,-500.0,0.0003041,2]
[341766122,1731219045984,-500.0,0.0003041,2]
[341766124,1731219045994,-502.57678498,0.00030486,5]
[341766125,1731219046003,-500.0,0.00030504,5]
[341766127,1731219046012,-564.465,0.00030534,2]
[341766128,1731219046021,-294.40923968,0.00030584,2]
[341766130,1731219046031,-45438.9098096,0.000306,5]
[341766132,1731219046040,-167.961449,0.0003063,30]
[341766133,1731219046050,-500.0,0.00030684,120]
[341766135,1731219046061,-500.0,0.00030684,2]
[341766137,1731219046071,-467.5,0.00030684,2]
[341766140,1731219046082,-2714.82,0.00030684,2]
[341766143,1731219046092,-341.40655992,0.00030684,2]
[341766145,1731219046102,-500.0,0.00030684,2]
[341766148,1731219046112,-500.0,0.00030684,2]
[341766149,1731219046121,-262.85304205,0.00030684,2]
[341766152,1731219046131,-1462.72,0.00030684,2]
[341766154,1731219046140,-860.03,0.00030684,2]
[341766155,1731219046149,-365.51553602,0.00030684,2]
[341766157,1731219046160,-254.20525376,0.00030684,2]
[341766158,1731219046169,-583.80699375,0.00030684,2]
[341766160,1731219046178,-500.0,0.00030684,2]
[341766161,1731219046187,-506.23312278,0.00030684,2]
[341766163,1731219046197,-1771.47,0.00030684,2]
[341766165,1731219046207,-500.0,0.00030684,2]
[341766166,1731219046215,-3883.62,0.00030684,2]
[341766168,1731219046224,-1198.38,0.00030684,2]
[341766169,1731219046233,-1553.13,0.00030684,2]
[341766171,1731219046243,-500.0,0.00030684,2]
[341766173,1731219046253,-500.0,0.00030684,2]
[341766174,1731219046263,-899.61,0.00030684,2]
[341766176,1731219046273,-500.0,0.00030684,2]
[341766177,1731219046283,-500.0,0.00030684,2]
[341766179,1731219046293,-500.0,0.00030684,2]
[341766181,1731219046305,-570.83,0.00030684,2]
[341766182,1731219046315,-500.0,0.00030684,2]
[341766184,1731219046324,-581.83,0.00030684,2]
[341766185,1731219046335,-500.0,0.00030684,2]
[341766187,1731219046345,-500.0,0.00030684,2]
[341766189,1731219046355,-500.0,0.00030684,2]
[341766190,1731219046365,-365.68788098,0.00030684,2]
[341766192,1731219046374,-597.44622165,0.00030684,2]
[341766193,1731219046385,-500.0,0.00030684,2]
[341766195,1731219046395,-500.0,0.00030684,2]
[341766197,1731219046404,-312.0,0.000307,3]
[341766198,1731219046415,-301.630352,0.00030767,30]
[341766200,1731219046425,-153.0,0.00030767,30]
[341766201,1731219046435,-153.0,0.00030767,30]
[341766203,1731219046445,-153.0,0.00030767,30]
[341766205,1731219046455,-7240.80589961,0.00030794,2]
[341766206,1731219046464,-353.95791629,0.00030799,2]
[341766208,1731219046474,-241.99924572,0.00030799,2]
[341766209,1731219046483,-608.68580296,0.00030799,2]
[341766211,1731219046492,-8222.19506097,0.000308,2]
[341766212,1731219046502,-294.40923966,0.0003084,2]
[341766214,1731219046511,-153.0,0.00030877,30]
[341766216,1731219046521,-212.0390805,0.00030904,30]
[341766217,1731219046531,-212.0390805,0.00030904,30]
[341766219,1731219046540,-212.0390805,0.00030904,30]
[341766220,1731219046550,-212.0390805,0.00030904,30]
[341766222,1731219046560,-335.3302071,0.00030904,30]
[341766224,1731219046570,-212.0390805,0.00030904,30]
[341766225,1731219046579,-212.0390805,0.00030904,30]
[341766227,1731219046589,-306.0,0.00030904,30]
[341766228,1731219046598,-212.0390805,0.00030904,30]
[341766230,1731219046608,-212.0390805,0.00030904,30]
[341766232,1731219046617,-209.023302,0.00030904,30]
[341766233,1731219046627,-212.0390805,0.00030904,30]
[341766235,1731219046638,-153.0,0.00030904,30]
[341766236,1731219046646,-212.0390805,0.00030904,30]
[341766238,1731219046656,-153.0,0.00030904,30]
[341766240,1731219046665,-212.0390805,0.00030904,30]
[341766241,1731219046674,-212.0390805,0.00030904,30]
[341766243,1731219046684,-168.691,0.0003093,30]
[341766244,1731219046696,-683.71,0.00030957,2]
[341766246,1731219046705,-500.0,0.00030958,120]
[341766247,1731219046714,-500.0,0.00030958,2]
[341766249,1731219046724,-2714.82,0.00030958,2]
[341766251,1731219046735,-500.0,0.00030958,2]
[341766252,1731219046744,-364.36789169,0.00030958,2]
[341766254,1731219046753,-1462.72,0.00030958,2]
[341766255,1731219046765,-860.03,0.00030958,2]
[341766257,1731219046776,-389.79387847,0.00030958,2]
[341766259,1731219046786,-1771.47,0.00030958,2]
[341766260,1731219046796,-500.0,0.00030958,2]
[341766262,1731219046806,-3883.62,0.00030958,2]
[341766263,1731219046815,-1198.38,0.00030958,2]
[341766265,1731219046825,-1553.13,0.00030958,2]
[341766266,1731219046835,-500.0,0.00030958,2]
[341766268,1731219046844,-500.0,0.00030958,2]
[341766270,1731219046854,-899.61,0.00030958,2]
[341766271,1731219046863,-500.0,0.00030958,2]
[341766273,1731219046873,-500.0,0.00030958,2]
[341766274,1731219046884,-500.0,0.00030958,2]
[341766276,1731219046897,-570.83,0.00030958,2]
[341766278,1731219046907,-500.0,0.00030958,2]
[341766279,1731219046917,-581.83,0.00030958,2]
[341766281,1731219046928,-500.0,0.00030958,2]
[341766283,1731219046937,-500.0,0.00030958,2]
[341766284,1731219046947,-500.0,0.00030958,2]
[341766286,1731219046956,-500.0,0.00030958,2]
[341766288,1731219046966,-151.0,0.00031,7]
[341766290,1731219046975,-151.0,0.00031,7]
[341766292,1731219046984,-151.0,0.00031,7]
[341766293,1731219046994,-5000.0,0.00031,2]
[341766294,1731219047003,-5000.0,0.00031,2]
[341766295,1731219047012,-5000.0,0.00031,2]
[341766296,1731219047021,-5000.0,0.00031,2]
[341766297,1731219047030,-5000.0,0.00031,2]
[341766298,1731219047039,-306.66507862,0.00031,2]
[341766299,1731219047048,-500.0,0.00031073,5]
[341766300,1731219047057,-501.51678115,0.00031073,5]
[341766301,1731219047066,-113625.92248332,0.00031079,2]
[341766302,1731219047076,-151.0,0.00031079,7]
[341766303,1731219047085,-151.611924,0.00031079,7]
[341766304,1731219047094,-151.0,0.00031079,7]
[341766305,1731219047103,-157.530062,0.00031079,7]
[341766306,1731219047113,-294.40923966,0.00031096,2]
[341766307,1731219047122,-150.112233,0.000311,19]
[341766308,1731219047135,-157.50894,0.000311,18]